fUSD/lending_fUSD_20240910
["ID","MTS","AMOUNT","RATE_DAILY","PERIOD"]
[337692085,1725966632573,-500.0,0.00012043,2]
[337692086,1725966632583,-500.0,0.00012043,2]
[337692087,1725966632592,-1067.2,0.00012043,2]
[337692088,1725966632602,-1034.3,0.00012043,2]
[337692089,1725966632611,-500.0,0.00012043,2]
[337692090,1725966632620,-2130.04,0.00012043,2]
[337692091,1725966632630,-1991.72,0.00012043,2]
[337692092,1725966632639,-1320.17,0.00012043,2]
[337692093,1725966632648,-777.94,0.00012043,2]
[337692094,1725966632657,-500.0,0.00012043,2]
[337692095,1725966632666,-881.98,0.00012043,2]
[337692096,1725966632675,-500.0,0.00012043,2]
[337692097,1725966632685,-1801.03,0.00012043,2]
[337692098,1725966632694,-500.0,0.00012043,2]
[337692099,1725966632703,-500.0,0.00012043,2]
[337692100,1725966632712,-500.0,0.00012043,2]
[337692101,1725966632722,-500.0,0.00012043,2]
[337692102,1725966632731,-755.78,0.00012043,2]
[337692103,1725966632740,-1076.56,0.00012043,2]
[337692104,1725966632750,-655.35,0.00012043,2]
[337692105,1725966632759,-834.1,0.00012043,2]
[337692106,1725966632770,-538.45,0.00012043,2]
[337692107,1725966632779,-2612.91,0.00012043,2]
[337692108,1725966632789,-722.01,0.00012043,2]
[337692109,1725966632798,-3384.87,0.00012043,2]
[337692110,1725966632807,-500.0,0.00012043,2]
[337692111,1725966632818,-500.0,0.00012043,2]
[337692112,1725966632827,-1711.66,0.00012043,2]
[337692113,1725966632836,-500.0,0.00012043,2]
[337692114,1725966632849,-761.88,0.00012043,2]
[337692115,1725966632860,-500.0,0.00012043,2]
[337692116,1725966632869,-671.02,0.00012043,2]
[337692117,1725966632879,-3931.17,0.00012043,2]
[337692118,1725966632888,-4265.8,0.00012043,2]
[337692119,1725966632896,-500.0,0.00012043,2]
[337692120,1725966632906,-2261.3,0.00012043,2]
[337692121,1725966632915,-2577.83,0.00012043,2]
[337692122,1725966632924,-500.0,0.00012043,2]
[337692123,1725966632933,-1361.13,0.00012043,2]
[337692124,1725966632943,-500.0,0.00012043,2]
[337692125,1725966632952,-4599.66,0.00012043,2]
[337692126,1725966632962,-4985.95,0.00012043,2]
[337692127,1725966632971,-4809.92,0.00012043,2]
[337692128,1725966632981,-6161.62,0.00012043,2]
[337692129,1725966632990,-3880.94,0.00012043,2]
[337692130,1725966633000,-6375.26,0.00012043,2]
[337692131,1725966633009,-5453.04,0.00012043,2]
[337692132,1725966633020,-3408.47,0.00012043,2]
[337692133,1725966633029,-1050.6,0.00012043,2]
[337692134,1725966633039,-533.43,0.00012043,2]
[337692135,1725966633049,-2272.13,0.00012043,2]
[337692136,1725966633058,-887.97,0.00012043,2]
[337692137,1725966633068,-1005.93,0.00012043,2]
[337692138,1725966633078,-2810.83,0.00012043,2]
[337692139,1725966633088,-5504.87,0.00012043,2]
[337692140,1725966633101,-2346.39,0.00012043,2]
[337692141,1725966633111,-8600.63,0.00012043,2]
[337692142,1725966633120,-4903.56,0.00012043,2]
[337692143,1725966633130,-2256.12,0.00012043,2]
[337692144,1725966633140,-500.0,0.00012043,2]
[337692145,1725966633150,-4500.38829918,0.00012043,2]
[337692146,1725966633164,-3325.24170082,0.00012043,2]
[337692147,1725966633174,-2748.96,0.00012043,2]
[337692148,1725966633184,-436.69688018,0.00012043,2]
[337692151,1725966637597,-1625.77344619,0.00012042,2]
[337692152,1725966637608,-2476.28655381,0.00012042,2]
[337692153,1725966637617,-500.0,0.00012042,2]
[337692154,1725966637627,-3857.47513975,0.00012042,2]
[337692155,1725966637639,-550.53486025,0.00012042,2]
[337692156,1725966637649,-500.0,0.00012042,2]
[337692157,1725966637658,-1463.42311982,0.00012043,2]
[337692158,1725966637668,-500.0,0.00012043,2]
[337692159,1725966637682,-3036.76409198,0.00012043,2]
[337692160,1725966637756,-329.5347003,0.00012043,2]
[337692161,1725966637768,-1605.27950326,0.00012043,2]
[337692162,1725966637780,-674.72170446,0.00012043,2]
[337692163,1725966637789,-838.85,0.00012043,2]
[337692164,1725966637799,-670.55,0.00012043,2]
[337692165,1725966637809,-500.0,0.00012043,2]
[337692166,1725966637819,-781.6,0.00012043,2]
[337692167,1725966637828,-884.63006276,0.00012043,2]
[337692173,1725966639601,-27159.91,0.00012042,2]
[337692174,1725966639610,-468.05993724,0.00012043,2]
[337692175,1725966639619,-500.0,0.00012043,2]
[337692176,1725966639629,-2165.17,0.00012043,2]
[337692177,1725966639638,-3797.98,0.00012043,2]
[337692178,1725966639647,-19885.43,0.00012043,2]
[337692179,1725966639657,-778.48,0.00012043,2]
[337692180,1725966639666,-500.0,0.00012043,2]
[337692181,1725966639675,-1774.82,0.00012043,2]
[337692182,1725966639686,-2457.67,0.00012043,2]
[337692183,1725966639695,-1652.81,0.00012043,2]
[337692184,1725966639704,-4302.76,0.00012043,2]
[337692185,1725966639713,-752.83,0.00012043,2]
[337692186,1725966639723,-1291.36,0.00012043,2]
[337692187,1725966639732,-1996.66,0.00012043,2]
[337692188,1725966639741,-50853.47,0.00012043,2]
[337692189,1725966639751,-3275.13,0.00012043,2]
[337692190,1725966639760,-2074.91,0.00012043,2]
[337692191,1725966639770,-4082.35,0.00012043,2]
[337692192,1725966639779,-2400.86,0.00012043,2]
[337692193,1725966639789,-720.72,0.00012043,2]
[337692194,1725966639799,-1892.82,0.00012043,2]
[337692195,1725966639809,-2696.02,0.00012043,2]
[337692196,1725966639818,-1588.24,0.00012043,2]
[337692197,1725966639828,-1830.42,0.00012043,2]
[337692198,1725966639838,-1340.15,0.00012043,2]
[337692199,1725966639847,-4331.33,0.00012043,2]
[337692200,1725966639857,-4088.06,0.00012043,2]
[337692201,1725966639867,-5225.83,0.00012043,2]
[337692202,1725966639876,-150.0,0.0001209,2]
[337692203,1725966639885,-150.0,0.00012131,2]
[337692205,1725966639895,-150.0,0.00012143,2]
[337692207,1725966639904,-150.0,0.00012152,2]
[337692209,1725966639913,-168.71903338,0.00012156,2]
[337692211,1725966639923,-150.0,0.0001218,2]
[337692212,1725966639934,-150.0,0.00012184,2]
[337692214,1725966639943,-641.54173,0.0001219,2]
[337692216,1725966639954,-499.99,0.0001219,2]
[337692218,1725966639964,-1500.0,0.00012197,2]
[337692219,1725966639973,-1600.0,0.000122,4]
[337692220,1725966639983,-150.0,0.00012216,2]
[337692221,1725966639995,-641.54174,0.0001222,2]
[337692222,1725966640006,-641.54173,0.0001226,2]
[337692224,1725966640017,-1231.36,0.0001226,2]
[337692227,1725966640027,-619.39,0.0001226,2]
[337692229,1725966640037,-805.0,0.00012276,2]
[337692231,1725966640047,-3343.0,0.00012276,2]
[337692233,1725966640057,-248.0,0.00012276,2]
[337692235,1725966640066,-1119.0,0.00012276,2]
[337692237,1725966640075,-1921.0,0.00012276,2]
[337692239,1725966640086,-215.3,0.00012276,2]
[337692241,1725966640098,-219.55,0.00012276,2]
[337692243,1725966640109,-9309.0,0.00012281,2]
[337692245,1725966640118,-1145.0,0.00012281,2]
[337692247,1725966640128,-5860.0,0.00012281,2]
[337692249,1725966640137,-150.0,0.00012281,2]
[337692251,1725966640147,-1079.0,0.00012281,2]
[337692253,1725966640156,-641.54174,0.0001229,2]
[337692255,1725966640166,-186.47882424,0.000123,2]
[337692257,1725966640176,-718.0,0.000123,2]
[337692259,1725966640187,-2400.0,0.000123,4]
[337692261,1725966640197,-151.44,0.00012306,2]
[337692263,1725966640206,-200.0,0.00012315,2]
[337692265,1725966640215,-156.048,0.00012315,2]
[337692267,1725966640227,-150.84,0.00012315,2]
[337692269,1725966640237,-150.0,0.00012315,2]
[337692270,1725966640247,-229.876,0.00012315,2]
[337692272,1725966640257,-150.409,0.00012315,2]
[337692274,1725966640268,-1547.0,0.00012315,2]
[337692276,1725966640278,-624.0,0.00012315,2]
[337692278,1725966640288,-543.577,0.00012315,2]
[337692280,1725966640297,-431.461,0.00012315,2]
[337692282,1725966640307,-810.0,0.00012315,2]
[337692284,1725966640317,-557.0,0.00012315,2]
[337692286,1725966640326,-1901.0,0.00012315,2]
[337692288,1725966640336,-551.525,0.00012315,2]
[337692290,1725966640345,-1114.03,0.00012316,2]
[337692292,1725966640355,-1115.41,0.00012316,2]
[337692294,1725966640365,-1269.71,0.00012316,2]
[337692296,1725966640374,-500.0,0.00012316,2]
[337692298,1725966640384,-500.0,0.00012316,2]
[337692300,1725966640393,-500.0,0.00012316,2]
[337692302,1725966640403,-500.0,0.00012316,2]
[337692304,1725966640412,-821.79,0.00012316,2]
[337692306,1725966640422,-1338.05,0.00012316,2]
[337692308,1725966640433,-633.14,0.00012316,2]
[337692310,1725966640442,-1171.29,0.00012316,2]
[337692312,1725966640452,-500.0,0.00012316,2]
[337692314,1725966640461,-1790.62,0.00012316,2]
[337692316,1725966640471,-756.71,0.00012316,2]
[337692318,1725966640480,-1100.59,0.00012316,2]
[337692320,1725966640490,-592.78,0.00012316,2]
[337692322,1725966640499,-921.76,0.00012316,2]
[337692324,1725966640509,-1693.64,0.00012316,2]
[337692326,1725966640518,-1709.57,0.00012316,2]
[337692328,1725966640528,-1334.48,0.00012316,2]
[337692330,1725966640537,-830.39,0.00012316,2]
[337692332,1725966640547,-931.05,0.00012316,2]
[337692334,1725966640556,-2014.62,0.00012316,2]
[337692336,1725966640566,-741.15,0.00012316,2]
[337692337,1725966640575,-774.05,0.00012316,2]
[337692338,1725966640585,-500.0,0.00012316,2]
[337692339,1725966640595,-500.0,0.00012316,2]
[337692340,1725966640604,-902.25,0.00012316,2]
[337692341,1725966640613,-500.0,0.00012316,2]
[337692342,1725966640623,-547.62,0.00012316,2]
[337692343,1725966640633,-500.0,0.00012316,2]
[337692344,1725966640643,-4088.4,0.00012316,2]
[337692345,1725966640652,-1277.35,0.00012316,2]
[337692346,1725966640662,-619.74,0.00012316,2]
[337692347,1725966640672,-500.0,0.00012316,2]
[337692348,1725966640683,-913.65,0.00012316,2]
[337692349,1725966640702,-1258.78,0.00012316,2]
[337692350,1725966640712,-500.0,0.00012316,2]
[337692351,1725966640722,-2177.79,0.00012316,2]
[337692352,1725966640732,-943.56,0.00012316,2]
[337692353,1725966640741,-1628.17,0.00012316,2]
[337692354,1725966640751,-1835.86,0.00012316,2]
[337692356,1725966640761,-2268.51,0.00012316,2]
[337692357,1725966640771,-2561.88,0.00012316,2]
[337692359,1725966640781,-500.0,0.00012316,2]
[337692361,1725966640791,-1659.83,0.00012316,2]
[337692363,1725966640804,-824.72,0.00012316,2]
[337692365,1725966640817,-555.35,0.00012316,2]
[337692367,1725966640826,-1944.1,0.00012316,2]
[337692368,1725966640836,-3237.58,0.00012316,2]
[337692370,1725966640845,-1547.3,0.00012316,2]
[337692372,1725966640855,-626.5,0.00012316,2]
[337692374,1725966640865,-1416.68,0.00012316,2]
[337692376,1725966640875,-2170.83,0.00012316,2]
[337692378,1725966640884,-6270.07,0.00012316,2]
[337692381,1725966640894,-5197.25,0.00012316,2]
[337692382,1725966640904,-500.0,0.00012316,2]
[337692385,1725966640914,-2185.98,0.00012316,2]
[337692387,1725966640926,-4196.29,0.00012316,2]
[337692389,1725966640937,-2755.18,0.00012316,2]
[337692391,1725966640947,-1815.12,0.00012316,2]
[337692393,1725966640956,-1453.76,0.00012316,2]
[337692395,1725966640966,-995.0,0.00012316,2]
[337692397,1725966640978,-1462.65,0.00012316,2]
[337692399,1725966640988,-775.45,0.00012316,2]
[337692401,1725966641000,-748.44,0.00012316,2]
[337692403,1725966641010,-500.0,0.00012316,2]
[337692405,1725966641020,-6263.85,0.00012316,2]
[337692408,1725966641033,-10385.76,0.00012316,2]
[337692410,1725966641043,-604.73,0.00012316,2]
[337692412,1725966641053,-597.71,0.00012316,2]
[337692414,1725966641064,-6633.61,0.00012316,2]
[337692416,1725966641074,-577.57,0.00012316,2]
[337692418,1725966641086,-2246.91,0.00012316,2]
[337692420,1725966641099,-28652.11,0.00012316,2]
[337692422,1725966641108,-720.44,0.00012316,2]
[337692424,1725966641118,-500.0,0.00012316,2]
[337692426,1725966641127,-4102.06,0.00012316,2]
[337692428,1725966641137,-500.0,0.00012316,2]
[337692430,1725966641147,-4408.01,0.00012316,2]
[337692432,1725966641156,-171.371819,0.00012316,2]
[337692434,1725966641166,-27159.91,0.00012316,2]
[337692436,1725966641177,-658.57,0.00012317,2]
[337692439,1725966641187,-1141.79,0.00012317,2]
[337692441,1725966641197,-500.0,0.00012317,2]
[337692443,1725966641207,-1190.02,0.00012317,2]
[337692445,1725966641217,-500.0,0.00012317,2]
[337692446,1725966641227,-500.0,0.00012317,2]
[337692449,1725966641238,-500.0,0.00012317,2]
[337692451,1725966641248,-362.3561377,0.00012317,2]
[337692453,1725966641258,-500.0,0.00012317,2]
[337692455,1725966641268,-1067.2,0.00012317,2]
[337692457,1725966641280,-1034.3,0.00012317,2]
[337692459,1725966641291,-500.0,0.00012317,2]
[337692461,1725966641300,-2130.04,0.00012317,2]
[337692463,1725966641311,-1991.72,0.00012317,2]
[337692465,1725966641322,-1320.17,0.00012317,2]
[337692467,1725966641332,-777.94,0.00012317,2]
[337692470,1725966641342,-500.0,0.00012317,2]
[337692472,1725966641352,-881.98,0.00012317,2]
[337692474,1725966641363,-273.7210482,0.00012317,2]
[337692476,1725966641374,-1801.03,0.00012317,2]
[337692478,1725966641385,-500.0,0.00012317,2]
[337692480,1725966641395,-500.0,0.00012317,2]
[337692482,1725966641405,-500.0,0.00012317,2]
[337692484,1725966641417,-500.0,0.00012317,2]
[337692486,1725966641427,-755.78,0.00012317,2]
[337692488,1725966641436,-1076.56,0.00012317,2]
[337692490,1725966641446,-655.35,0.00012317,2]
[337692492,1725966641456,-834.1,0.00012317,2]
[337692494,1725966641466,-538.45,0.00012317,2]
[337692496,1725966641475,-2612.91,0.00012317,2]
[337692498,1725966641485,-722.01,0.00012317,2]
[337692500,1725966641495,-3384.87,0.00012317,2]
[337692502,1725966641505,-500.0,0.00012317,2]
[337692504,1725966641515,-574.18757808,0.00012317,2]
[337692506,1725966641526,-1711.66,0.00012317,2]
[337692508,1725966641535,-500.0,0.00012317,2]
[337692510,1725966641545,-761.88,0.00012317,2]
[337692512,1725966641555,-500.0,0.00012317,2]
[337692514,1725966641564,-671.02,0.00012317,2]
[337692516,1725966641575,-500.0,0.00012317,2]
[337692518,1725966641585,-2261.3,0.00012317,2]
[337692520,1725966641595,-2577.83,0.00012317,2]
[337692522,1725966641605,-500.0,0.00012317,2]
[337692524,1725966641615,-1361.13,0.00012317,2]
[337692526,1725966641625,-500.0,0.00012317,2]
[337692528,1725966641636,-4985.95,0.00012317,2]
[337692530,1725966641646,-4809.92,0.00012317,2]
[337692532,1725966641656,-6161.62,0.00012317,2]
[337692534,1725966641666,-6375.26,0.00012317,2]
[337692537,1725966641677,-3408.47,0.00012317,2]
[337692539,1725966641689,-1050.6,0.00012317,2]
[337692541,1725966641699,-533.43,0.00012317,2]
[337692543,1725966641708,-2272.13,0.00012317,2]
[337692545,1725966641718,-887.97,0.00012317,2]
[337692547,1725966641728,-1005.93,0.00012317,2]
[337692549,1725966641738,-2810.83,0.00012317,2]
[337692551,1725966641749,-5504.87,0.00012317,2]
[337692553,1725966641759,-2346.39,0.00012317,2]
[337692555,1725966641769,-8600.63,0.00012317,2]
[337692557,1725966641778,-4903.56,0.00012317,2]
[337692559,1725966641788,-2256.12,0.00012317,2]
[337692561,1725966641799,-500.0,0.00012317,2]
[337692563,1725966641810,-7825.63,0.00012317,2]
[337692565,1725966641822,-2748.96,0.00012317,2]
[337692567,1725966641833,-1900.12,0.00012317,2]
[337692570,1725966641844,-500.0,0.00012317,2]
[337692572,1725966641854,-5646.3,0.00012317,2]
[337692574,1725966641865,-838.85,0.00012317,2]
[337692576,1725966641875,-670.55,0.00012317,2]
[337692578,1725966641884,-500.0,0.00012317,2]
[337692580,1725966641894,-781.6,0.00012317,2]
[337692582,1725966641905,-1352.69,0.00012317,2]
[337692584,1725966641915,-500.0,0.00012317,2]
[337692586,1725966641926,-2165.17,0.00012317,2]
[337692588,1725966641937,-3797.98,0.00012317,2]
[337692590,1725966641947,-19885.43,0.00012317,2]
[337692592,1725966641958,-778.48,0.00012317,2]
[337692594,1725966641969,-500.0,0.00012317,2]
[337692596,1725966641979,-1774.82,0.00012317,2]
[337692597,1725966641990,-2457.67,0.00012317,2]
[337692599,1725966642001,-1652.81,0.00012317,2]
[337692601,1725966642011,-4302.76,0.00012317,2]
[337692603,1725966642023,-752.83,0.00012317,2]
[337692604,1725966642033,-1291.36,0.00012317,2]
[337692606,1725966642043,-1996.66,0.00012317,2]
[337692608,1725966642055,-50853.47,0.00012317,2]
[337692609,1725966642067,-2074.91,0.00012317,2]
[337692627,1725966642314,-3275.13,0.00012317,2]
[337692628,1725966642324,-4082.35,0.00012317,2]
[337692630,1725966642335,-2400.86,0.00012317,2]
[337692631,1725966642345,-720.72,0.00012317,2]
[337692633,1725966642355,-1892.82,0.00012317,2]
[337692635,1725966642365,-2696.02,0.00012317,2]
[337692636,1725966642374,-1588.24,0.00012317,2]
[337692638,1725966642383,-1830.42,0.00012317,2]
[337692639,1725966642393,-1340.15,0.00012317,2]
[337692641,1725966642402,-4331.33,0.00012317,2]
[337692642,1725966642411,-4088.06,0.00012317,2]
[337692644,1725966642421,-5225.83,0.00012317,2]
[337692646,1725966642432,-641.54173,0.00012318,2]
[337692647,1725966642441,-641.54174,0.00012318,2]
[337692649,1725966642450,-151.0,0.00012329,2]
[337692650,1725966642460,-151.0,0.00012329,2]
[337692652,1725966642470,-151.0,0.00012329,2]
[337692654,1725966642479,-151.0,0.00012329,2]
[337692655,1725966642488,-151.0,0.00012329,2]
[337692657,1725966642498,-151.0,0.00012329,2]
[337692658,1725966642507,-257.446879,0.00012329,2]
[337692660,1725966642516,-151.0,0.00012329,2]
[337692661,1725966642526,-151.0,0.00012329,2]
[337692663,1725966642536,-224.60609,0.00012329,2]
[337692665,1725966642546,-154.159282,0.00012329,2]
[337692666,1725966642555,-151.0,0.00012329,2]
[337692668,1725966642564,-151.0,0.00012329,2]
[337692669,1725966642574,-151.0,0.00012329,2]
[337692671,1725966642584,-151.0,0.00012329,2]
[337692673,1725966642593,-151.0,0.00012329,2]
[337692674,1725966642602,-204.673188,0.00012329,2]
[337692676,1725966642611,-411.903167,0.00012329,2]
[337692678,1725966642621,-411.903167,0.00012329,2]
[337692680,1725966642630,-411.903167,0.00012329,2]
[337692681,1725966642640,-411.903167,0.00012329,2]
[337692683,1725966642649,-411.903167,0.00012329,2]
[337692685,1725966642659,-411.903167,0.00012329,2]
[337692686,1725966642668,-1819.679947,0.00012329,2]
[337692688,1725966642677,-1819.679947,0.00012329,2]
[337692690,1725966642688,-1819.679947,0.00012329,2]
[337692692,1725966642699,-1819.679947,0.00012329,2]
[337692693,1725966642708,-1819.679947,0.00012329,2]
[337692695,1725966642718,-1819.679947,0.00012329,2]
[337692697,1725966642727,-151.0,0.00012329,2]
[337692699,1725966642736,-172.28172042,0.00012393,2]
[337692701,1725966642746,-150.0,0.000124,2]
[337692702,1725966642756,-150.0,0.000124,2]
[337692704,1725966642765,-4929.94497676,0.000124,2]
[337692706,1725966642775,-3200.0,0.000124,4]
[337692708,1725966642785,-752.5,0.000124,2]
[337692709,1725966642794,-427.66,0.000124,2]
[337692711,1725966642803,-422.28,0.000124,2]
[337692713,1725966642813,-150.0,0.000124,2]
[337692714,1725966642822,-150.0,0.000124,2]
[337692716,1725966642832,-150.0,0.000124,2]
[337692718,1725966642841,-422.28,0.000124,2]
[337692720,1725966642850,-150.0,0.000124,2]
[337692721,1725966642859,-357.54,0.000124,2]
[337692722,1725966642868,-427.66,0.000124,2]
[337692724,1725966642877,-150.0,0.000124,2]
[337692726,1725966642887,-752.5,0.000124,2]
[337692727,1725966642897,-427.66,0.000124,2]
[337692729,1725966642906,-150.0,0.000124,2]
[337692730,1725966642915,-422.28,0.000124,2]
[337692732,1725966642925,-752.5,0.000124,2]
[337692734,1725966642935,-150.0,0.000124,2]
[337692735,1725966642944,-186.47882422,0.0001245,2]
[337692737,1725966642954,-151.44,0.0001249,2]
[337692738,1725966642963,-493.787,0.00012492,2]
[337692740,1725966642974,-151.655,0.00012492,2]
[337692742,1725966642983,-45500.5574999,0.00012493,2]
[337692743,1725966642993,-12653.710778,0.00012493,2]
[337692745,1725966643002,-1819.679947,0.00012493,2]
[337692747,1725966643012,-1819.679947,0.00012493,2]
[337692749,1725966643022,-2493.23351167,0.00012499,2]
[337692750,1725966643031,-770.0,0.000125,2]
[337692752,1725966643041,-105982.81171141,0.000125,2]
[337692754,1725966643050,-433.92,0.000125,2]
[337692755,1725966643059,-169.82,0.000125,2]
[337692757,1725966643069,-154.08,0.000125,2]
[337692759,1725966643078,-449.0,0.000125,2]
[337692761,1725966643087,-752.5,0.000125,2]
[337692762,1725966643097,-150.0,0.000125,2]
[337692764,1725966643109,-357.58,0.000125,2]
[337692766,1725966643119,-150.0,0.000125,2]
[337692768,1725966643129,-422.28,0.000125,2]
[337692770,1725966643141,-150.0,0.000125,2]
[337692771,1725966643151,-150.0,0.000125,2]
[337692773,1725966643161,-863.64,0.000125,2]
[337692775,1725966643172,-150.0,0.000125,2]
[337692777,1725966643184,-150.0,0.000125,2]
[337692779,1725966643193,-427.66,0.000125,2]
[337692780,1725966643204,-357.58,0.000125,2]
[337692782,1725966643213,-150.0,0.000125,2]
[337692784,1725966643225,-150.0,0.000125,2]
[337692786,1725966643236,-150.0,0.000125,2]
[337692788,1725966643247,-422.28,0.000125,2]
[337692789,1725966643256,-150.0,0.000125,2]
[337692791,1725966643266,-752.5,0.000125,2]
[337692793,1725966643275,-427.66,0.000125,2]
[337692794,1725966643285,-752.5,0.000125,2]
[337692796,1725966643295,-150.0,0.000125,2]
[337692798,1725966643304,-150.0,0.000125,2]
[337692800,1725966643314,-150.0,0.000125,2]
[337692801,1725966643323,-422.28,0.000125,2]
[337692803,1725966643333,-150.0,0.000125,2]
[337692805,1725966643343,-150.0,0.000125,2]
[337692806,1725966643352,-150.0,0.000125,2]
[337692808,1725966643362,-357.58,0.000125,2]
[337692810,1725966643372,-328.44,0.000125,2]
[337692811,1725966643382,-150.0,0.000125,2]
[337692813,1725966643391,-427.66,0.000125,2]
[337692815,1725966643401,-752.5,0.000125,2]
[337692817,1725966643411,-150.0,0.000125,2]
[337692818,1725966643426,-427.66,0.000125,2]
[337692820,1725966643436,-150.0,0.000125,2]
[337692822,1725966643445,-150.0,0.000125,2]
[337692823,1725966643454,-150.0,0.000125,2]
[337692825,1725966643464,-422.28,0.000125,2]
[337692826,1725966643474,-150.0,0.000125,2]
[337692828,1725966643483,-1503.4,0.000125,2]
[337692830,1725966643493,-150.0,0.000125,2]
[337692831,1725966643503,-357.58,0.000125,2]
[337692833,1725966643512,-422.28,0.000125,2]
[337692835,1725966643522,-150.0,0.000125,2]
[337692836,1725966643531,-752.5,0.000125,2]
[337692838,1725966643541,-427.66,0.000125,2]
[337692840,1725966643550,-150.0,0.000125,2]
[337692842,1725966643560,-150.0,0.000125,2]
[337692843,1725966643570,-150.0,0.000125,2]
[337692845,1725966643579,-752.5,0.000125,2]
[337692847,1725966643589,-422.28,0.000125,2]
[337692849,1725966643599,-150.0,0.000125,2]
[337692850,1725966643609,-357.58,0.000125,2]
[337692852,1725966643618,-150.0,0.000125,2]
[337692854,1725966643628,-752.5,0.000125,2]
[337692856,1725966643638,-422.28,0.000125,2]
[337692858,1725966643648,-150.0,0.000125,2]
[337692860,1725966643657,-150.0,0.000125,2]
[337692862,1725966643667,-740.05,0.000125,2]
[337692864,1725966643676,-331.86,0.000125,2]
[337692865,1725966643687,-684.97,0.000125,2]
[337692867,1725966643698,-300.0,0.000125,2]
[337692868,1725966643707,-421.74,0.000125,2]
[337692869,1725966643717,-367.85,0.000125,2]
[337692870,1725966643727,-752.5,0.000125,2]
[337692871,1725966643736,-751.54,0.000125,2]
[337692872,1725966643746,-850.54,0.000125,2]
[337692873,1725966643756,-153.736647,0.000125,2]
[337692874,1725966643766,-151.0,0.000125,2]
[337692875,1725966643776,-150.0,0.000125,2]
[337692876,1725966643785,-422.19,0.000125,2]
[337692877,1725966643794,-752.5,0.000125,2]
[337692878,1725966643804,-285.37,0.000125,2]
[337692879,1725966643813,-151.0,0.000125,2]
[337692880,1725966643823,-752.5,0.000125,2]
[337692881,1725966643832,-422.09,0.000125,2]
[337692882,1725966643841,-151.04,0.000125,2]
[337692883,1725966643851,-150.0,0.000125,2]
[337692884,1725966643860,-752.5,0.000125,2]
[337692885,1725966643870,-150.0,0.000125,2]
[337692886,1725966643879,-370.06,0.000125,2]
[337692887,1725966643889,-150.0,0.000125,2]
[337692888,1725966643899,-150.0,0.000125,2]
[337692889,1725966643909,-791.93,0.000125,2]
[337692890,1725966643918,-784.34,0.000125,2]
[337692891,1725966643927,-607.52,0.000125,2]
[337692892,1725966643937,-150.0,0.000125,2]
[337692893,1725966643947,-209.99,0.000125,2]
[337692895,1725966643956,-4000.0,0.000125,4]
[337692896,1725966643965,-411.903167,0.000125,2]
[337692898,1725966643975,-411.903167,0.000125,2]
[337692901,1725966643985,-1819.679947,0.000125,2]
[337692903,1725966643994,-1819.679947,0.000125,2]